[Event "Titled Tuesday Blitz July 18 Late 2023"]
[White "Liu, Casper"]
[Black "Womacka, Mathias"]
[WhiteFideId "1454153"]
[BlackFideId "4611390"]
[WhiteElo "2434"]
[BlackElo "2521"]
[Result "0-1"]
[Round "6"]
[TimeControl "180+2"]
[Date "2023.07.18"]
[WhiteClock "0:01:05"]
[BlackClock "0:01:13"]
[Board "160"]

1. e4 {[%clk 0:03:00]}  c5 {[%clk 0:02:58]} 2. d4 {[%clk 0:03:01]}  cxd4 {[%clk 0:02:58]} 3. Qxd4 {[%clk 0:03:02]}  Nc6 {[%clk 0:02:57]} 4. Qe3 {[%clk 0:03:02]}  Nf6 {[%clk 0:02:56]} 5. Nc3 {[%clk 0:03:03]}  d6 {[%clk 0:02:51]} 6. Bd2 {[%clk 0:03:03]}  e6 {[%clk 0:02:48]} 7. O-O-O {[%clk 0:03:03]}  Be7 {[%clk 0:02:48]} 8. h4 {[%clk 0:03:03]}  a6 {[%clk 0:02:46]} 9. f3 {[%clk 0:03:03]}  b5 {[%clk 0:02:46]} 10. h5 {[%clk 0:03:01]}  h6 {[%clk 0:02:45]} 11. g4 {[%clk 0:03:01]}  Bb7 {[%clk 0:02:36]} 12. Nh3 {[%clk 0:03:02]}  Qc7 {[%clk 0:02:32]} 13. Nf4 {[%clk 0:03:02]}  Ne5 {[%clk 0:02:30]} 14. Kb1 {[%clk 0:02:47]}  b4 {[%clk 0:02:17]} 15. Na4 {[%clk 0:02:41]}  Nxf3 {[%clk 0:02:15]} 16. Bxb4 {[%clk 0:02:14]}  Bxe4 {[%clk 0:02:09]} 17. Bd3 {[%clk 0:02:14]}  Bxd3 {[%clk 0:02:06]} 18. Rxd3 {[%clk 0:01:59]}  Ne5 {[%clk 0:02:06]} 19. Rc3 {[%clk 0:01:58]}  Qb7 {[%clk 0:02:05]} 20. Rd1 {[%clk 0:01:24]}  Qxb4 {[%clk 0:02:03]} 21. Nb6 {[%clk 0:01:23]}  Rd8 {[%clk 0:01:58]} 22. Rc7 {[%clk 0:01:22]}  Nexg4 {[%clk 0:01:48]} 23. Rxe7+ {[%clk 0:01:09]}  Kxe7 {[%clk 0:01:39]} 24. Nbd5+ {[%clk 0:01:09]}  Nxd5 {[%clk 0:01:16]} 25. Nxd5+ {[%clk 0:01:10]}  Kf8 {[%clk 0:01:16]} 26. Qb6 {[%clk 0:01:05]}  Qxb6 {[%clk 0:01:13]} 0-1


[Site "https://www.chess.com"]

[Event "Titled Tuesday Blitz July 18 Late 2023"]
[White "Sainz Aguirre, Ignacio"]
[Black "Schachpanda_Youtube"]
[WhiteFideId "5101727"]
[WhiteElo "1963"]
[BlackElo "2222"]
[Result "1-0"]
[Round "6"]
[TimeControl "180+2"]
[Date "2023.07.18"]
[WhiteClock "0:00:22"]
[BlackClock "0:00:00"]
[Board "163"]

1. e4 {[%clk 0:02:52]}  c6 {[%clk 0:02:59]} 2. d4 {[%clk 0:02:52]}  d5 {[%clk 0:02:59]} 3. e5 {[%clk 0:02:52]}  c5 {[%clk 0:02:59]} 4. c4 {[%clk 0:02:51]}  cxd4 {[%clk 0:02:56]} 5. Nf3 {[%clk 0:02:44]}  Bg4 {[%clk 0:02:42]} 6. cxd5 {[%clk 0:02:37]}  Qxd5 {[%clk 0:02:28]} 7. Nc3 {[%clk 0:02:33]}  Bxf3 {[%clk 0:01:48]} 8. Nxd5 {[%clk 0:02:29]}  Bxd1 {[%clk 0:01:47]} 9. Nc7+ {[%clk 0:02:17]}  Kd8 {[%clk 0:01:45]} 10. Nxa8 {[%clk 0:02:16]}  Ba4 {[%clk 0:01:29]} 11. e6 {[%clk 0:02:10]}  fxe6 {[%clk 0:01:23]} 12. Bf4 {[%clk 0:02:06]}  e5 {[%clk 0:01:08]} 13. Bxe5 {[%clk 0:02:02]}  Nc6 {[%clk 0:01:08]} 14. Bg3 {[%clk 0:01:53]}  e5 {[%clk 0:01:01]} 15. b3 {[%clk 0:01:47]}  Bb4+ {[%clk 0:00:59]} 16. Kd1 {[%clk 0:01:44]}  Nf6 {[%clk 0:00:52]} 17. bxa4 {[%clk 0:01:41]}  Kd7 {[%clk 0:00:52]} 18. a3 {[%clk 0:01:34]}  Bd6 {[%clk 0:00:37]} 19. Rb1 {[%clk 0:01:34]}  Rxa8 {[%clk 0:00:32]} 20. Rxb7+ {[%clk 0:01:32]}  Ke6 {[%clk 0:00:24]} 21. Bc4+ {[%clk 0:01:26]}  Kf5 {[%clk 0:00:24]} 22. Re1 {[%clk 0:01:07]}  Na5 {[%clk 0:00:21]} 23. Bd3+ {[%clk 0:00:56]}  e4 {[%clk 0:00:15]} 24. Rb5+ {[%clk 0:00:52]}  Ke6 {[%clk 0:00:03]} 25. Bxd6 {[%clk 0:00:49]}  Kxd6 {[%clk 0:00:03]} 26. Rxa5 {[%clk 0:00:49]}  exd3 {[%clk 0:00:02]} 27. Ra6+ {[%clk 0:00:42]}  Kd7 {[%clk 0:00:01]} 28. Rxf6 {[%clk 0:00:40]}  gxf6 {[%clk 0:00:01]} 29. Kd2 {[%clk 0:00:41]}  Rb8 {[%clk 0:00:01]} 30. Kxd3 {[%clk 0:00:41]}  Rb3+ {[%clk 0:00:01]} 31. Kxd4 {[%clk 0:00:41]}  Rxa3 {[%clk 0:00:02]} 32. Ke4 {[%clk 0:00:35]}  Rxa4+ {[%clk 0:00:03]} 33. Kf5 {[%clk 0:00:35]}  Ra5+ {[%clk 0:00:03]} 34. Kxf6 {[%clk 0:00:35]}  Ra2 {[%clk 0:00:04]} 35. Rf1 {[%clk 0:00:34]}  Rb2 {[%clk 0:00:04]} 36. g4 {[%clk 0:00:33]}  a5 {[%clk 0:00:04]} 37. h4 {[%clk 0:00:33]}  a4 {[%clk 0:00:05]} 38. g5 {[%clk 0:00:33]}  a3 {[%clk 0:00:05]} 39. Rd1+ {[%clk 0:00:32]}  Kc6 {[%clk 0:00:05]} 40. Rd3 {[%clk 0:00:32]}  a2 {[%clk 0:00:04]} 41. Ra3 {[%clk 0:00:32]}  Rxf2+ {[%clk 0:00:04]} 42. Kg7 {[%clk 0:00:31]}  Rh2 {[%clk 0:00:03]} 43. Kxh7 {[%clk 0:00:30]}  Rxh4+ {[%clk 0:00:03]} 44. Kg7 {[%clk 0:00:27]}  Rh2 {[%clk 0:00:03]} 45. g6 {[%clk 0:00:27]}  Rg2 {[%clk 0:00:04]} 46. Kf7 {[%clk 0:00:25]}  Kb5 {[%clk 0:00:04]} 47. g7 {[%clk 0:00:24]}  Kb4 {[%clk 0:00:00]} 48. Rxa2 {[%clk 0:00:22]} 1-0


[Site "https://www.chess.com"]

[Event "Titled Tuesday Blitz July 18 Late 2023"]
[White "De Arruda, Leandro Formes"]
[Black "Lutz, Igor Oscar"]
[WhiteFideId "22722009"]
[BlackFideId "2110806"]
[WhiteElo "2211"]
[BlackElo "1940"]
[Result "1-0"]
[Round "6"]
[TimeControl "180+2"]
[Date "2023.07.18"]
[WhiteClock "0:01:18"]
[BlackClock "0:00:00"]
[Board "164"]

1. d4 {[%clk 0:03:00]}  Nf6 {[%clk 0:02:52]} 2. Nf3 {[%clk 0:03:00]}  d5 {[%clk 0:02:46]} 3. e3 {[%clk 0:03:00]}  c6 {[%clk 0:02:32]} 4. Nbd2 {[%clk 0:02:59]}  e6 {[%clk 0:02:15]} 5. Bd3 {[%clk 0:02:59]}  Be7 {[%clk 0:02:13]} 6. O-O {[%clk 0:02:59]}  O-O {[%clk 0:02:10]} 7. Ne5 {[%clk 0:03:00]}  Nbd7 {[%clk 0:02:05]} 8. f4 {[%clk 0:03:00]}  c5 {[%clk 0:02:02]} 9. c3 {[%clk 0:03:00]}  Qc7 {[%clk 0:01:57]} 10. Rf3 {[%clk 0:03:00]}  c4 {[%clk 0:01:50]} 11. Bc2 {[%clk 0:03:00]}  b5 {[%clk 0:01:49]} 12. Rh3 {[%clk 0:03:00]}  g6 {[%clk 0:01:46]} 13. Qf3 {[%clk 0:02:59]}  b4 {[%clk 0:01:44]} 14. g4 {[%clk 0:02:59]}  bxc3 {[%clk 0:01:41]} 15. bxc3 {[%clk 0:03:00]}  Rb8 {[%clk 0:01:38]} 16. g5 {[%clk 0:02:59]}  Nxe5 {[%clk 0:01:32]} 17. dxe5 {[%clk 0:02:51]}  Ne4 {[%clk 0:01:30]} 18. Bxe4 {[%clk 0:02:46]}  dxe4 {[%clk 0:01:28]} 19. Nxe4 {[%clk 0:02:47]}  Bb7 {[%clk 0:01:10]} 20. Rxh7 {[%clk 0:02:23]}  Kxh7 {[%clk 0:00:58]} 21. Qh3+ {[%clk 0:02:22]}  Kg8 {[%clk 0:00:46]} 22. Nf6+ {[%clk 0:02:20]}  Bxf6 {[%clk 0:00:44]} 23. exf6 {[%clk 0:01:40]}  Qc6 {[%clk 0:00:40]} 24. Ba3 {[%clk 0:01:39]}  Qg2+ {[%clk 0:00:18]} 25. Qxg2 {[%clk 0:01:38]}  Bxg2 {[%clk 0:00:19]} 26. Kxg2 {[%clk 0:01:39]}  Rfd8 {[%clk 0:00:18]} 27. Bb4 {[%clk 0:01:35]}  Rd2+ {[%clk 0:00:18]} 28. Kf3 {[%clk 0:01:34]}  Rxh2 {[%clk 0:00:15]} 29. a4 {[%clk 0:01:27]}  Rd8 {[%clk 0:00:14]} 30. Bc5 {[%clk 0:01:24]}  Rh3+ {[%clk 0:00:12]} 31. Ke4 {[%clk 0:01:24]}  Rd3 {[%clk 0:00:08]} 32. Bd4 {[%clk 0:01:21]}  Rh2 {[%clk 0:00:05]} 33. Rb1 {[%clk 0:01:20]}  Kh7 {[%clk 0:00:03]} 34. Rb7 {[%clk 0:01:19]}  Ra2 {[%clk 0:00:02]} 35. Rxf7+ {[%clk 0:01:19]}  Kg8 {[%clk 0:00:01]} 36. Rxa7 {[%clk 0:01:18]}  Rdd2 {[%clk 0:00:00]} 37. f7+ {[%clk 0:01:18]} 1-0


[Site "https://www.chess.com"]

[Event "Titled Tuesday Blitz July 18 Late 2023"]
[White "Meshkovs, Nikita"]
[Black "Bortnyk, Olexandr"]
[WhiteFideId "11602740"]
[BlackFideId "14120828"]
[WhiteElo "2771"]
[BlackElo "3033"]
[Result "0-1"]
[Round "7"]
[TimeControl "180+2"]
[Date "2023.07.18"]
[WhiteClock "0:00:02"]
[BlackClock "0:00:55"]
[Board "3"]

1. d4 {[%clk 0:03:00]}  d6 {[%clk 0:02:59]} 2. Nf3 {[%clk 0:02:57]}  Nf6 {[%clk 0:02:58]} 3. c4 {[%clk 0:02:54]}  g6 {[%clk 0:02:59]} 4. Nc3 {[%clk 0:02:54]}  Bf5 {[%clk 0:02:59]} 5. h3 {[%clk 0:02:46]}  h5 {[%clk 0:02:58]} 6. Qb3 {[%clk 0:02:43]}  Qc8 {[%clk 0:02:58]} 7. c5 {[%clk 0:02:25]}  Bg7 {[%clk 0:02:57]} 8. cxd6 {[%clk 0:02:19]}  cxd6 {[%clk 0:02:57]} 9. Bg5 {[%clk 0:02:17]}  O-O {[%clk 0:02:56]} 10. Rc1 {[%clk 0:02:17]}  Nc6 {[%clk 0:02:54]} 11. e3 {[%clk 0:02:12]}  Qd7 {[%clk 0:02:41]} 12. Be2 {[%clk 0:02:04]}  Ne4 {[%clk 0:02:37]} 13. Nxe4 {[%clk 0:01:59]}  Bxe4 {[%clk 0:02:38]} 14. O-O {[%clk 0:01:57]}  Bxf3 {[%clk 0:02:26]} 15. Bxf3 {[%clk 0:01:54]}  e6 {[%clk 0:02:26]} 16. Bxc6 {[%clk 0:01:36]}  bxc6 {[%clk 0:02:27]} 17. Qa4 {[%clk 0:01:34]}  Rfc8 {[%clk 0:02:25]} 18. Rc2 {[%clk 0:01:34]}  Rab8 {[%clk 0:02:23]} 19. Rfc1 {[%clk 0:01:33]}  Rb6 {[%clk 0:02:21]} 20. b3 {[%clk 0:01:20]}  Qb7 {[%clk 0:02:21]} 21. Bf4 {[%clk 0:01:17]}  Bf8 {[%clk 0:02:19]} 22. Qa5 {[%clk 0:01:05]}  d5 {[%clk 0:02:14]} 23. Qd2 {[%clk 0:01:02]}  a5 {[%clk 0:02:13]} 24. Be5 {[%clk 0:00:57]}  Qa6 {[%clk 0:02:11]} 25. e4 {[%clk 0:00:54]}  dxe4 {[%clk 0:01:55]} 26. Qf4 {[%clk 0:00:54]}  Bg7 {[%clk 0:01:54]} 27. Bxg7 {[%clk 0:00:48]}  Kxg7 {[%clk 0:01:54]} 28. Qxe4 {[%clk 0:00:47]}  a4 {[%clk 0:01:53]} 29. b4 {[%clk 0:00:29]}  Rxb4 {[%clk 0:01:44]} 30. Rxc6 {[%clk 0:00:27]}  Rxc6 {[%clk 0:01:45]} 31. Rxc6 {[%clk 0:00:27]}  Qb5 {[%clk 0:01:42]} 32. Rc7 {[%clk 0:00:23]}  Qd5 {[%clk 0:01:32]} 33. Qf4 {[%clk 0:00:20]}  Qf5 {[%clk 0:01:27]} 34. Qe3 {[%clk 0:00:14]}  Rb1+ {[%clk 0:01:07]} 35. Kh2 {[%clk 0:00:14]}  Rb2 {[%clk 0:01:08]} 36. d5 {[%clk 0:00:11]}  exd5 {[%clk 0:01:05]} 37. Qd4+ {[%clk 0:00:05]}  Qf6 {[%clk 0:01:05]} 38. Qxa4 {[%clk 0:00:02]}  Qxf2 {[%clk 0:00:55]} 0-1


[Site "https://www.chess.com"]

[Event "Titled Tuesday Blitz July 18 Late 2023"]
[White "Terry, Renato"]
[Black "Paravyan, David"]
[WhiteFideId "3803457"]
[BlackFideId "4194985"]
[WhiteElo "2959"]
[BlackElo "3030"]
[Result "1-0"]
[Round "7"]
[TimeControl "180+2"]
[Date "2023.07.18"]
[WhiteClock "0:00:06"]
[BlackClock "0:00:14"]
[Board "4"]

1. Nf3 {[%clk 0:03:00]}  Nf6 {[%clk 0:03:00]} 2. e3 {[%clk 0:03:01]}  g6 {[%clk 0:02:58]} 3. b4 {[%clk 0:03:00]}  Bg7 {[%clk 0:02:58]} 4. Bb2 {[%clk 0:03:00]}  O-O {[%clk 0:02:58]} 5. c4 {[%clk 0:03:01]}  d6 {[%clk 0:02:59]} 6. d4 {[%clk 0:02:58]}  c5 {[%clk 0:02:59]} 7. a3 {[%clk 0:02:56]}  b6 {[%clk 0:02:57]} 8. Be2 {[%clk 0:02:54]}  Bb7 {[%clk 0:02:57]} 9. O-O {[%clk 0:02:54]}  Nbd7 {[%clk 0:02:58]} 10. Nbd2 {[%clk 0:02:48]}  cxd4 {[%clk 0:02:57]} 11. exd4 {[%clk 0:02:43]}  Rc8 {[%clk 0:02:57]} 12. Rc1 {[%clk 0:02:30]}  Nh5 {[%clk 0:02:57]} 13. Re1 {[%clk 0:02:27]}  Nf4 {[%clk 0:02:56]} 14. Bf1 {[%clk 0:02:28]}  e5 {[%clk 0:02:56]} 15. d5 {[%clk 0:02:14]}  b5 {[%clk 0:02:56]} 16. Ne4 {[%clk 0:02:07]}  Nf6 {[%clk 0:02:54]} 17. g3 {[%clk 0:02:02]}  Nxe4 {[%clk 0:02:52]} 18. Rxe4 {[%clk 0:02:03]}  f5 {[%clk 0:02:51]} 19. Re1 {[%clk 0:02:00]}  Nh5 {[%clk 0:02:44]} 20. cxb5 {[%clk 0:01:55]}  Rxc1 {[%clk 0:02:43]} 21. Bxc1 {[%clk 0:01:56]}  Nf6 {[%clk 0:02:42]} 22. Bc4 {[%clk 0:01:54]}  h6 {[%clk 0:02:41]} 23. Nh4 {[%clk 0:01:43]}  Kh7 {[%clk 0:02:40]} 24. Be3 {[%clk 0:01:43]}  Qd7 {[%clk 0:02:36]} 25. Qd3 {[%clk 0:01:27]}  e4 {[%clk 0:02:28]} 26. Qd2 {[%clk 0:01:27]}  g5 {[%clk 0:02:23]} 27. Ng2 {[%clk 0:01:27]}  Ng4 {[%clk 0:02:23]} 28. Be2 {[%clk 0:01:24]}  Ne5 {[%clk 0:02:21]} 29. Rc1 {[%clk 0:01:20]}  f4 {[%clk 0:02:17]} 30. gxf4 {[%clk 0:01:15]}  Nf3+ {[%clk 0:02:17]} 31. Bxf3 {[%clk 0:01:13]}  exf3 {[%clk 0:02:18]} 32. Qd3+ {[%clk 0:01:06]}  Kh8 {[%clk 0:02:19]} 33. Ne1 {[%clk 0:01:03]}  Qg4+ {[%clk 0:02:17]} 34. Kh1 {[%clk 0:01:03]}  Re8 {[%clk 0:01:10]} 35. fxg5 {[%clk 0:00:20]}  hxg5 {[%clk 0:01:10]} 36. Rc4 {[%clk 0:00:12]}  Rxe3 {[%clk 0:00:58]} 37. Rxg4 {[%clk 0:00:11]}  Rxe1+ {[%clk 0:00:43]} 38. Rg1 {[%clk 0:00:11]}  Re5 {[%clk 0:00:43]} 39. Qg6 {[%clk 0:00:07]}  Bxd5 {[%clk 0:00:42]} 40. Rc1 {[%clk 0:00:07]}  Be6 {[%clk 0:00:35]} 41. a4 {[%clk 0:00:05]}  d5 {[%clk 0:00:35]} 42. a5 {[%clk 0:00:04]}  Bf5 {[%clk 0:00:19]} 43. Qh5+ {[%clk 0:00:04]}  Kg8 {[%clk 0:00:19]} 44. b6 {[%clk 0:00:05]}  axb6 {[%clk 0:00:20]} 45. axb6 {[%clk 0:00:06]}  Re4 {[%clk 0:00:12]} 46. b7 {[%clk 0:00:05]}  Rxb4 {[%clk 0:00:13]} 47. Qe8+ {[%clk 0:00:05]}  Kh7 {[%clk 0:00:12]} 48. b8=Q {[%clk 0:00:06]}  Rxb8 {[%clk 0:00:12]} 49. Qxb8 {[%clk 0:00:07]}  Kg6 {[%clk 0:00:13]} 50. Qd6+ {[%clk 0:00:07]}  Kh5 {[%clk 0:00:14]} 51. Qxd5 {[%clk 0:00:07]}  Bh3 {[%clk 0:00:14]} 52. Qxf3+ {[%clk 0:00:07]}  g4 {[%clk 0:00:15]} 53. Qf5+ {[%clk 0:00:06]}  Kh4 {[%clk 0:00:14]} 54. Qh7+ {[%clk 0:00:06]} 1-0


[Site "https://www.chess.com"]

[Event "Titled Tuesday Blitz July 18 Late 2023"]
[White "Grigoriants, Sergey"]
[Black "Mamedov, Rauf"]
[WhiteFideId "4130804"]
[BlackFideId "13401653"]
[WhiteElo "2917"]
[BlackElo "3049"]
[Result "0-1"]
[Round "7"]
[TimeControl "180+2"]
[Date "2023.07.18"]
[WhiteClock "0:00:00"]
[BlackClock "0:01:23"]
[Board "7"]

1. d4 {[%clk 0:02:53]}  d5 {[%clk 0:02:59]} 2. c4 {[%clk 0:02:51]}  e6 {[%clk 0:02:59]} 3. Nc3 {[%clk 0:02:50]}  c5 {[%clk 0:02:59]} 4. e3 {[%clk 0:02:47]}  Nf6 {[%clk 0:02:55]} 5. Nf3 {[%clk 0:02:47]}  a6 {[%clk 0:02:55]} 6. cxd5 {[%clk 0:02:40]}  exd5 {[%clk 0:02:56]} 7. Be2 {[%clk 0:02:09]}  Nc6 {[%clk 0:02:55]} 8. O-O {[%clk 0:02:08]}  c4 {[%clk 0:02:49]} 9. b3 {[%clk 0:02:04]}  b5 {[%clk 0:02:47]} 10. bxc4 {[%clk 0:02:03]}  dxc4 {[%clk 0:02:45]} 11. a3 {[%clk 0:01:14]}  Be7 {[%clk 0:02:34]} 12. d5 {[%clk 0:01:11]}  Na5 {[%clk 0:02:33]} 13. e4 {[%clk 0:01:08]}  O-O {[%clk 0:02:33]} 14. Bf4 {[%clk 0:00:58]}  Bc5 {[%clk 0:02:22]} 15. e5 {[%clk 0:00:51]}  Nh5 {[%clk 0:02:18]} 16. Bg5 {[%clk 0:00:46]}  f6 {[%clk 0:02:15]} 17. Be3 {[%clk 0:00:42]}  Bxe3 {[%clk 0:02:13]} 18. fxe3 {[%clk 0:00:43]}  fxe5 {[%clk 0:02:12]} 19. Nxe5 {[%clk 0:00:41]}  Nf6 {[%clk 0:02:12]} 20. Bf3 {[%clk 0:00:36]}  Nb3 {[%clk 0:02:12]} 21. d6 {[%clk 0:00:23]}  Be6 {[%clk 0:02:07]} 22. Bxa8 {[%clk 0:00:12]}  Qxa8 {[%clk 0:02:08]} 23. Ra2 {[%clk 0:00:12]}  Qa7 {[%clk 0:02:07]} 24. Kh1 {[%clk 0:00:05]}  Qc5 {[%clk 0:01:58]} 25. Nf3 {[%clk 0:00:04]}  Rd8 {[%clk 0:01:56]} 26. Qe1 {[%clk 0:00:03]}  Rxd6 {[%clk 0:01:54]} 27. e4 {[%clk 0:00:04]}  Rd3 {[%clk 0:01:54]} 28. e5 {[%clk 0:00:02]}  Ng4 {[%clk 0:01:52]} 29. Ne4 {[%clk 0:00:02]}  Qe3 {[%clk 0:01:53]} 30. Neg5 {[%clk 0:00:02]}  Qxe1 {[%clk 0:01:49]} 31. Rxe1 {[%clk 0:00:03]}  Nc5 {[%clk 0:01:47]} 32. h3 {[%clk 0:00:04]}  Nh6 {[%clk 0:01:47]} 33. Nxe6 {[%clk 0:00:04]}  Nxe6 {[%clk 0:01:48]} 34. Rd2 {[%clk 0:00:04]}  Rxa3 {[%clk 0:01:40]} 35. Rd6 {[%clk 0:00:04]}  Kf7 {[%clk 0:01:41]} 36. Rd7+ {[%clk 0:00:05]}  Ke8 {[%clk 0:01:41]} 37. Ra7 {[%clk 0:00:04]}  Nf5 {[%clk 0:01:38]} 38. Rd1 {[%clk 0:00:05]}  c3 {[%clk 0:01:37]} 39. Rc1 {[%clk 0:00:04]}  b4 {[%clk 0:01:37]} 40. Rb7 {[%clk 0:00:04]}  a5 {[%clk 0:01:37]} 41. Rb6 {[%clk 0:00:04]}  Ned4 {[%clk 0:01:26]} 42. Nxd4 {[%clk 0:00:04]}  Nxd4 {[%clk 0:01:26]} 43. Rb7 {[%clk 0:00:04]}  c2 {[%clk 0:01:25]} 44. e6 {[%clk 0:00:00]}  Re3 {[%clk 0:01:23]} 0-1


[Site "https://www.chess.com"]

[Event "Titled Tuesday Blitz July 18 Late 2023"]
[White "He, Anthony"]
[Black "Gadimbayli, Abdulla"]
[WhiteFideId "2088215"]
[BlackFideId "13404938"]
[WhiteElo "2980"]
[BlackElo "2845"]
[Result "0-1"]
[Round "7"]
[TimeControl "180+2"]
[Date "2023.07.18"]
[WhiteClock "0:00:10"]
[BlackClock "0:00:12"]
[Board "11"]

1. e4 {[%clk 0:03:00]}  e5 {[%clk 0:02:58]} 2. Nf3 {[%clk 0:02:59]}  d5 {[%clk 0:02:58]} 3. exd5 {[%clk 0:02:57]}  e4 {[%clk 0:02:59]} 4. Qe2 {[%clk 0:02:55]}  Nf6 {[%clk 0:02:59]} 5. d3 {[%clk 0:02:55]}  Bb4+ {[%clk 0:02:58]} 6. c3 {[%clk 0:02:54]}  O-O {[%clk 0:02:59]} 7. dxe4 {[%clk 0:02:51]}  Bd6 {[%clk 0:02:59]} 8. Bg5 {[%clk 0:02:48]}  Re8 {[%clk 0:02:58]} 9. Bc1 {[%clk 0:02:48]}  Rxe4 {[%clk 0:02:54]} 10. Be3 {[%clk 0:02:47]}  Nxd5 {[%clk 0:02:54]} 11. Nbd2 {[%clk 0:02:47]}  Re8 {[%clk 0:02:51]} 12. O-O-O {[%clk 0:02:39]}  Nxe3 {[%clk 0:02:16]} 13. fxe3 {[%clk 0:02:40]}  Be6 {[%clk 0:02:17]} 14. Kb1 {[%clk 0:02:38]}  Nd7 {[%clk 0:02:10]} 15. e4 {[%clk 0:02:36]}  Qe7 {[%clk 0:02:05]} 16. Qf2 {[%clk 0:02:29]}  a5 {[%clk 0:01:56]} 17. Bd3 {[%clk 0:02:25]}  a4 {[%clk 0:01:55]} 18. Rhe1 {[%clk 0:02:24]}  a3 {[%clk 0:01:52]} 19. b3 {[%clk 0:02:23]}  Ne5 {[%clk 0:01:52]} 20. Bc2 {[%clk 0:02:22]}  Rad8 {[%clk 0:01:51]} 21. Nd4 {[%clk 0:02:20]}  Bc5 {[%clk 0:01:52]} 22. N2f3 {[%clk 0:02:19]}  Bg4 {[%clk 0:01:45]} 23. Qg3 {[%clk 0:02:11]}  Bb6 {[%clk 0:01:27]} 24. h3 {[%clk 0:02:05]}  Nxf3 {[%clk 0:01:04]} 25. gxf3 {[%clk 0:02:04]}  Bc8 {[%clk 0:00:59]} 26. f4 {[%clk 0:01:44]}  c5 {[%clk 0:00:45]} 27. Nf3 {[%clk 0:01:40]}  Ba5 {[%clk 0:00:42]} 28. Ne5 {[%clk 0:01:36]}  Bc7 {[%clk 0:00:34]} 29. Ng4 {[%clk 0:01:27]}  Rxd1+ {[%clk 0:00:27]} 30. Rxd1 {[%clk 0:01:26]}  Rd8 {[%clk 0:00:28]} 31. Nh6+ {[%clk 0:01:13]}  Kf8 {[%clk 0:00:26]} 32. Rg1 {[%clk 0:01:14]}  Qf6 {[%clk 0:00:22]} 33. Nf5 {[%clk 0:00:38]}  Bxf5 {[%clk 0:00:22]} 34. exf5 {[%clk 0:00:38]}  Ba5 {[%clk 0:00:22]} 35. Qe3 {[%clk 0:00:34]}  Qxc3 {[%clk 0:00:19]} 36. Qxc3 {[%clk 0:00:31]}  Bxc3 {[%clk 0:00:20]} 37. Rd1 {[%clk 0:00:31]}  Rxd1+ {[%clk 0:00:14]} 38. Bxd1 {[%clk 0:00:32]}  Bd2 {[%clk 0:00:15]} 39. Bf3 {[%clk 0:00:29]}  b6 {[%clk 0:00:16]} 40. Kc2 {[%clk 0:00:25]}  Bxf4 {[%clk 0:00:16]} 41. Kd3 {[%clk 0:00:25]}  Ke7 {[%clk 0:00:17]} 42. Bd5 {[%clk 0:00:26]}  Kf6 {[%clk 0:00:15]} 43. Ke4 {[%clk 0:00:26]}  Bc7 {[%clk 0:00:15]} 44. Bc4 {[%clk 0:00:26]}  g6 {[%clk 0:00:15]} 45. fxg6 {[%clk 0:00:27]}  fxg6 {[%clk 0:00:16]} 46. Kf3 {[%clk 0:00:25]}  Ke5 {[%clk 0:00:15]} 47. Bg8 {[%clk 0:00:25]}  h6 {[%clk 0:00:15]} 48. b4 {[%clk 0:00:23]}  Kd4 {[%clk 0:00:14]} 49. Bf7 {[%clk 0:00:23]}  g5 {[%clk 0:00:13]} 50. bxc5 {[%clk 0:00:24]}  bxc5 {[%clk 0:00:14]} 51. Ke2 {[%clk 0:00:24]}  c4 {[%clk 0:00:13]} 52. Kd2 {[%clk 0:00:23]}  Be5 {[%clk 0:00:12]} 53. Kc2 {[%clk 0:00:22]}  c3 {[%clk 0:00:12]} 54. Kb3 {[%clk 0:00:22]}  Ke3 {[%clk 0:00:12]} 55. Kc2 {[%clk 0:00:17]}  Kf4 {[%clk 0:00:10]} 56. Be6 {[%clk 0:00:17]}  h5 {[%clk 0:00:10]} 57. Kb3 {[%clk 0:00:17]}  g4 {[%clk 0:00:09]} 58. hxg4 {[%clk 0:00:18]}  hxg4 {[%clk 0:00:10]} 59. Bc8 {[%clk 0:00:18]}  g3 {[%clk 0:00:10]} 60. Bb7 {[%clk 0:00:19]}  Ke3 {[%clk 0:00:11]} 61. Bd5 {[%clk 0:00:12]}  Kd2 {[%clk 0:00:11]} 62. Be4 {[%clk 0:00:10]}  g2 {[%clk 0:00:12]} 0-1


[Site "https://www.chess.com"]

[Event "Titled Tuesday Blitz July 18 Late 2023"]
[White "Xiong, Jeffery"]
[Black "Fantastic_Power"]
[WhiteFideId "2047640"]
[WhiteElo "2972"]
[BlackElo "2756"]
[Result "1-0"]
[Round "7"]
[TimeControl "180+2"]
[Date "2023.07.18"]
[WhiteClock "0:01:46"]
[BlackClock "0:00:40"]
[Board "12"]

1. e4 {[%clk 0:03:00]}  c5 {[%clk 0:02:59]} 2. Nf3 {[%clk 0:03:01]}  Nf6 {[%clk 0:03:00]} 3. e5 {[%clk 0:02:59]}  Nd5 {[%clk 0:03:00]} 4. Nc3 {[%clk 0:03:00]}  e6 {[%clk 0:03:01]} 5. Ne4 {[%clk 0:03:00]}  f5 {[%clk 0:03:00]} 6. Nc3 {[%clk 0:02:59]}  Ne7 {[%clk 0:03:01]} 7. d4 {[%clk 0:02:44]}  cxd4 {[%clk 0:03:02]} 8. Nxd4 {[%clk 0:02:45]}  a6 {[%clk 0:03:01]} 9. Be3 {[%clk 0:02:27]}  Qc7 {[%clk 0:02:59]} 10. f4 {[%clk 0:02:27]}  Ng6 {[%clk 0:02:37]} 11. Qd2 {[%clk 0:02:24]}  Nc6 {[%clk 0:02:33]} 12. O-O-O {[%clk 0:02:24]}  b5 {[%clk 0:02:32]} 13. Nb3 {[%clk 0:02:10]}  Be7 {[%clk 0:02:09]} 14. g4 {[%clk 0:02:09]}  Nh4 {[%clk 0:01:48]} 15. Bh3 {[%clk 0:02:03]}  O-O {[%clk 0:01:37]} 16. Rhf1 {[%clk 0:01:58]}  Rb8 {[%clk 0:01:25]} 17. gxf5 {[%clk 0:01:57]}  Nxf5 {[%clk 0:01:25]} 18. Bxf5 {[%clk 0:01:54]}  Rxf5 {[%clk 0:01:26]} 19. Ne4 {[%clk 0:01:55]}  a5 {[%clk 0:01:22]} 20. Bc5 {[%clk 0:01:48]}  a4 {[%clk 0:01:18]} 21. Nd4 {[%clk 0:01:47]}  Nxd4 {[%clk 0:00:55]} 22. Bxe7 {[%clk 0:01:47]}  d5 {[%clk 0:00:40]} 23. exd6 {[%clk 0:01:46]} 1-0


[Site "https://www.chess.com"]